bitfinex/quotes_ETHUSD_20250603
["timestamp","ask_amount","ask_price","bid_price","bid_amount"]
[1748952381992,9.68548991,2597.7,2597.1,11.85043358]
[1748952382693,2.0264,2598.3,2597.5,2.92658024]
[1748952382900,3.84910697,2598.1,2597.5,2.92658024]
[1748952383201,3.921,2598.0,2597.5,2.92658024]
[1748952383399,3.84927372,2597.9,2597.5,2.92658024]
[1748952383574,3.84920033,2598.0,2597.5,2.92658024]
[1748952383899,3.92,2597.8,2597.5,2.92658024]
[1748952384805,3.919,2597.7,2597.5,2.92658024]
[1748952385702,3.919,2597.6,2597.5,2.92658024]
[1748952386083,3.84920033,2598.0,2597.5,2.92658024]
[1748952386271,3.919,2597.9,2597.5,2.92658024]
[1748952386881,7.76828164,2597.9,2597.5,2.92658024]
[1748952387093,4.6190238,2598.0,2597.5,2.92658024]
[1748952387407,3.918,2597.9,2597.5,2.92658024]
[1748952387606,7.76727796,2597.9,2597.5,2.92658024]
[1748952387765,0.7698216,2598.0,2597.5,2.92658024]
[1748952387971,3.84924099,2598.0,2597.5,2.92658024]
[1748952388171,3.917,2597.9,2597.5,2.92658024]
[1748952388370,7.76629418,2597.9,2597.5,2.92658024]
[1748952388605,3.917,2597.8,2597.5,2.92658024]
[1748952390105,3.917,2597.8,2597.3,6.77665368]
[1748952390512,3.917,2597.8,2597.3,2.92658024]
[1748952390892,3.917,2597.8,2597.3,6.7767242]
[1748952391716,3.915,2597.7,2597.3,2.92658024]
[1748952392217,3.84942701,2597.8,2597.3,2.92658024]
[1748952392402,3.915,2597.7,2597.3,2.92658024]
[1748952392591,3.915,2597.6,2597.3,2.92658024]
[1748952393717,3.915,2597.6,2597.3,6.77673122]
[1748952393905,3.914,2597.5,2597.3,2.92658024]
[1748952394821,3.84942694,2597.8,2597.3,2.92658024]
[1748952395115,3.913,2597.7,2597.3,2.92658024]
[1748952395411,3.913,2597.7,2597.3,6.77672803]
[1748952395616,3.913,2597.7,2597.3,2.92658024]
[1748952395915,3.913,2597.6,2597.3,6.77670432]
[1748952396116,3.913,2597.6,2597.3,2.92658024]
[1748952397502,3.912,2597.5,2597.3,2.92658024]
[1748952398292,3.912,2597.5,2597.2,0.55]
[1748952399622,3.912,2597.5,2597.1,10.92658024]
[1748952400227,8.73301395,2597.5,2597.0,8.0]
[1748952400445,9.99127697,2597.5,2597.0,8.0]
[1748952400654,9.99127697,2597.5,2596.7,3.85100622]
[1748952400655,6.14136302,2597.5,2596.7,2.92658024]
[1748952400925,0.967,2597.1,2596.7,8.0]
[1748952401112,3.913,2597.0,2596.7,8.0]
[1748952401991,3.913,2597.0,2596.7,11.85103128]
[1748952402193,3.913,2597.0,2596.6,11.85111082]
[1748952402703,3.913,2597.0,2596.7,3.85101321]
[1748952403113,3.913,2597.0,2596.6,8.0]
[1748952403327,3.913,2597.0,2596.6,11.85118484]
[1748952403890,3.913,2597.0,2596.6,8.0]
[1748952404393,4.78603789,2597.0,2596.6,8.0]
[1748952404820,4.78603789,2597.0,2596.5,3.85123507]
[1748952405032,4.78603789,2597.0,2596.6,3.85118975]
[1748952405226,4.78603789,2597.0,2596.6,8.0]
[1748952405413,3.913,2597.0,2596.6,14.7777274]
[1748952405618,3.913,2596.9,2596.8,6.77744088]
[1748952405822,0.9544,2597.6,2596.9,0.55]
[1748952406123,3.915,2597.5,2597.2,2.92658024]
[1748952406324,0.9544,2597.6,2597.2,6.77681637]
[1748952406504,3.8493351,2597.9,2597.3,3.85008733]
[1748952406698,7.76442308,2597.8,2597.2,6.77680903]
[1748952406940,7.76444324,2597.8,2597.2,6.77680903]
[1748952407641,0.933,2597.6,2597.2,2.92658024]
[1748952407834,3.915,2597.5,2597.2,2.92658024]
[1748952408230,3.915,2597.5,2597.2,6.77687046]
[1748952409339,0.9906,2597.8,2597.4,2.92658024]
[1748952409542,3.914,2597.7,2597.6,2.92658024]
[1748952409845,3.914,2597.7,2597.4,6.77650898]
[1748952410405,3.914,2597.7,2597.4,2.92658024]
[1748952410939,3.914,2597.7,2597.3,6.77662517]
[1748952411442,3.914,2597.7,2597.4,3.84996191]
[1748952414209,3.912,2597.6,2597.5,3.8497338]
[1748952414410,3.912,2597.6,2597.4,3.84986296]
[1748952415021,3.912,2597.6,2597.5,3.84985563]
[1748952416612,3.912,2597.6,2597.4,3.84992469]
[1748952416812,3.912,2597.6,2597.5,3.84985563]
[1748952417548,3.912,2597.6,2597.4,3.84992562]
[1748952418243,3.912,2597.6,2597.5,3.84985563]
[1748952418413,3.912,2597.6,2597.4,3.84991471]
[1748952421946,3.912,2597.6,2597.1,8.0]
[1748952422140,3.912,2597.6,2597.2,6.77686421]
[1748952423152,3.912,2597.6,2597.3,3.85015084]
[1748952423514,0.9361,2597.5,2596.9,6.77724005]
[1748952423714,0.9361,2597.5,2597.2,8.0]
[1748952426055,0.9361,2597.5,2597.2,11.85027772]
[1748952426556,0.9361,2597.5,2597.2,11.85026421]
[1748952427456,0.9361,2597.5,2597.2,8.0]
[1748952427825,0.9361,2597.5,2597.2,11.85029566]
[1748952428962,3.907,2597.4,2597.2,11.85029566]
[1748952432056,0.9821,2597.7,2597.5,3.84976306]
[1748952432429,3.908,2597.6,2597.5,6.7763433]
[1748952433227,3.908,2597.6,2597.5,2.92658024]
[1748952433526,3.84926839,2597.9,2597.3,6.77664306]
[1748952433731,3.907,2597.8,2597.4,3.8499914]
[1748952433933,0.9383,2597.7,2597.3,10.92658024]
[1748952434327,0.9383,2597.7,2597.3,14.77664417]
[1748952434725,0.9383,2597.7,2597.3,8.0]
[1748952435651,0.9383,2597.7,2597.3,11.85013352]
[1748952435863,4.45633103,2597.6,2597.3,8.0]
[1748952439369,4.76114517,2597.5,2596.9,11.85068598]
[1748952439547,3.84994432,2597.5,2596.8,6.77746207]
[1748952439747,0.8879,2597.4,2596.8,6.77746207]
[1748952439953,3.908,2597.3,2596.9,8.0]
[1748952442168,3.908,2597.3,2596.8,6.77746207]
[1748952443548,7.7581659,2597.3,2596.8,2.92658024]
[1748952443747,3.908,2597.3,2596.8,6.77747004]
[1748952447381,3.908,2597.3,2596.8,6.77744972]
[1748952447677,0.8943,2597.2,2596.8,2.92658024]
[1748952447885,0.8943,2597.2,2596.8,6.77745379]
[1748952449657,3.904,2597.1,2596.8,6.77745379]
[1748952452488,3.904,2597.1,2596.8,2.92658024]
[1748952453050,3.904,2597.1,2596.8,6.77746518]
[1748952453453,3.904,2597.1,2596.8,2.92658024]
[1748952453647,0.8943,2597.2,2597.0,2.92658024]
[1748952453902,0.9688,2597.9,2597.3,3.85008595]
[1748952454067,3.908,2597.8,2597.5,2.92658024]
[1748952454705,7.75747711,2597.8,2597.3,2.92658024]
[1748952454910,3.84965008,2597.7,2597.1,3.85036128]
[1748952455238,0.9381,2597.6,2597.2,2.92658024]
[1748952455385,3.907,2597.5,2597.2,2.92658024]
[1748952458445,0.9381,2597.6,2597.2,6.77681307]
[1748952458747,3.906,2597.6,2597.4,6.77649152]
[1748952458896,4.74059166,2598.0,2597.4,6.77649152]
[1748952459096,3.907,2597.9,2597.4,6.77649152]
[1748952459820,3.907,2597.9,2597.4,2.92658024]
[1748952460031,7.75626365,2597.9,2597.4,2.92658024]
[1748952460540,3.907,2597.9,2597.4,6.77650499]
[1748952461228,3.907,2597.8,2597.4,2.92658024]
[1748952463413,2.54335178,2598.0,2597.4,2.92658024]
[1748952463612,2.54335178,2598.0,2597.8,2.92658024]
[1748952463831,11.838,2598.1,2597.8,2.92658024]
[1748952464028,11.838,2598.1,2598.0,2.92658024]
[1748952464911,11.838,2598.1,2597.8,2.92658024]
[1748952465439,3.84914632,2598.0,2597.6,2.92658024]
[1748952465611,0.9564,2597.9,2597.6,2.92658024]
[1748952465814,3.84962342,2597.7,2597.2,2.92658024]
[1748952466063,0.9564,2597.5,2597.0,2.92658024]
[1748952466246,3.911,2597.4,2597.0,2.92658024]
[1748952468067,3.911,2597.4,2597.0,6.77716647]
[1748952468547,3.911,2597.4,2597.0,2.92658024]
[1748952468763,3.911,2597.4,2596.9,3.85067005]
[1748952468915,3.911,2597.4,2597.0,2.92658024]
[1748952471344,5.16769847,2597.4,2597.0,2.92658024]
[1748952471742,3.911,2597.4,2597.0,2.92658024]
[1748952471946,3.911,2597.4,2596.7,11.85098514]
[1748952471947,0.9526,2597.3,2596.8,3.85080609]
[1748952472116,0.9526,2597.3,2596.8,6.77738633]
[1748952474966,0.9526,2597.3,2596.8,6.77739508]
[1748952475619,0.9526,2597.3,2597.0,6.77707142]
[1748952475835,0.9526,2597.3,2596.9,3.85073224]
[1748952475836,4.75378676,2597.7,2597.2,2.92658024]
[1748952476039,3.909,2597.6,2597.2,2.92658024]
[1748952477474,4.75378977,2597.7,2597.2,2.92658024]
[1748952477635,3.91,2597.5,2597.2,2.92658024]
[1748952478473,0.9042,2597.7,2597.2,2.92658024]
[1748952478663,0.9042,2597.7,2597.4,2.92658024]
[1748952478862,3.909,2597.6,2597.4,2.92658024]
[1748952479440,7.75877122,2597.6,2597.4,2.92658024]
[1748952479639,3.909,2597.6,2597.4,2.92658024]
[1748952479866,4.77526418,2597.6,2597.0,3.85053633]
[1748952480055,7.75876743,2597.6,2597.2,2.92658024]
[1748952480975,3.84986188,2597.5,2597.0,6.77709429]
[1748952481191,0.9044,2597.4,2597.0,2.92658024]
[1748952481578,0.9044,2597.4,2597.0,6.77716344]
[1748952481749,0.9044,2597.4,2597.1,3.85043156]
[1748952481954,0.9044,2597.4,2597.0,2.92658024]
[1748952482387,0.9044,2597.4,2597.0,6.77708118]
[1748952483265,3.908,2597.3,2597.0,6.77708118]
[1748952483588,3.24133333,2597.3,2597.0,6.77708118]
[1748952486688,3.24133333,2597.3,2597.0,2.92658024]
[1748952487596,4.7544763,2597.4,2596.7,3.85103493]
[1748952487597,0.9044,2597.4,2597.1,2.92658024]
[1748952487801,0.9043,2597.7,2597.3,2.92658024]
[1748952488103,3.909,2597.6,2597.3,2.92658024]
[1748952488966,3.909,2597.6,2597.3,6.77672394]
[1748952489173,3.909,2597.5,2597.3,2.92658024]
[1748952489758,4.75387372,2597.7,2597.3,2.92658024]
[1748952489959,3.908,2597.6,2597.3,2.92658024]
[1748952490777,4.75394427,2597.7,2597.3,2.92658024]
[1748952491075,3.908,2597.6,2597.3,2.92658024]
[1748952492296,7.75779811,2597.6,2597.3,2.92658024]
[1748952492487,3.908,2597.6,2597.1,6.77698957]
[1748952494498,3.908,2597.6,2597.2,3.85029765]
[1748952494801,3.908,2597.6,2597.1,6.77694546]
[1748952494982,0.9043,2597.7,2597.2,3.85024752]
[1748952495189,3.905,2597.5,2597.2,3.85024752]
[1748952495781,0.9043,2597.7,2597.5,3.84977982]
[1748952495989,7.93,2598.1,2597.7,3.84946173]
[1748952496287,7.93,2598.1,2597.9,2.92658024]
[1748952496464,3.908,2598.0,2597.9,2.92658024]
[1748952496867,0.9715,2598.4,2597.9,2.92658024]
[1748952497071,3.908,2598.2,2597.9,2.92658024]
[1748952497306,4.82004002,2598.4,2597.9,2.92658024]
[1748952497307,0.9715,2598.4,2597.9,2.92658024]
[1748952497598,0.9715,2598.4,2598.0,3.84910654]
[1748952497802,3.908,2598.3,2598.1,2.92658024]
[1748952497964,0.9715,2598.4,2598.1,2.92658024]
[1748952498171,3.908,2598.3,2598.1,2.92658024]
[1748952498881,3.907,2598.2,2598.1,2.92658024]
[1748952499079,0.02,2598.9,2598.1,2.92658024]
[1748952499388,3.911,2598.8,2598.6,2.92658024]
[1748952499607,3.911,2598.8,2598.4,2.92658024]
[1748952499801,7.75895815,2598.8,2598.4,2.92658024]
[1748952500375,3.911,2598.8,2598.4,2.92658024]
[1748952500610,3.86784373,2598.9,2598.4,2.92658024]
[1748952500822,3.91,2598.8,2598.4,2.92658024]
[1748952500979,3.91,2598.8,2598.4,6.77506768]
[1748952501178,3.91,2598.7,2598.4,6.77506768]
[1748952501911,3.909,2598.7,2598.6,2.92658024]
[1748952503219,3.908,2598.7,2598.6,2.92658024]
[1748952504611,0.02,2598.9,2598.6,2.92658024]
[1748952504814,3.907,2598.8,2598.6,2.92658024]
[1748952505377,7.75496568,2598.8,2598.3,8.0]
[1748952505582,0.02,2598.9,2598.6,2.92658024]
[1748952505784,0.02,2598.9,2598.8,2.92658024]
[1748952507615,0.02,2598.9,2598.8,6.77451005]
[1748952507916,0.02,2598.9,2598.8,2.92658024]
[1748952508541,0.02,2598.9,2598.8,6.77451005]
[1748952508725,0.02,2598.9,2598.8,7.32451005]
[1748952509045,0.02,2598.9,2598.8,15.32451005]
[1748952514403,0.02,2598.9,2598.8,14.77451005]
[1748952514934,0.02,2598.9,2598.8,15.32451005]
[1748952521454,0.02,2598.9,2598.8,8.0]
[1748952521612,0.02,2598.9,2598.4,2.92658024]
[1748952521817,0.02,2598.9,2598.8,2.92658024]
[1748952523043,0.02,2598.9,2598.8,6.77451005]
[1748952523252,0.02,2598.9,2598.8,2.92658024]
[1748952525236,0.02,2598.9,2598.8,6.77451005]
[1748952526029,0.02,2598.9,2598.8,2.92658024]
[1748952526318,0.02,2598.9,2598.8,3.21923826]
[1748952527853,0.02,2598.9,2598.8,2.92658024]
[1748952532064,0.9615,2598.9,2598.8,2.92658024]
[1748952534043,0.02,2598.9,2598.8,2.92658024]
[1748952536149,0.02,2598.9,2598.2,0.55]
[1748952536355,0.02,2598.9,2597.8,0.37836902]
[1748952536356,0.9383,2598.4,2598.0,2.92658024]
[1748952536559,4.8453,2598.4,2598.0,10.92658024]
[1748952536863,4.8453,2598.4,2598.0,14.77567909]
[1748952537566,4.8453,2598.4,2598.2,2.92658024]
[1748952538677,4.8453,2598.4,2598.2,6.77533823]
[1748952538851,4.8453,2598.4,2598.2,2.92658024]
[1748952539936,4.8453,2598.4,2598.2,6.77537372]
[1748952540138,0.9376,2598.8,2598.6,3.8481476]
[1748952540376,0.02,2598.9,2598.7,6.77465812]
[1748952540641,0.02,2598.9,2598.8,3.84792981]
[1748952546892,0.02,2598.9,2598.8,12.39792981]
[1748952551708,0.02,2599.9,2598.8,12.39792981]
[1748952551709,3.905,2599.6,2599.5,3.84689363]
[1748952551886,0.886,2599.7,2599.5,2.92658024]
[1748952552900,0.906,2599.9,2599.6,3.84661936]
[1748952553241,0.906,2599.9,2599.7,6.77317131]
[1748952553401,4.81,2599.9,2599.7,6.77310624]
[1748952553889,0.02,2599.9,2599.8,3.84644972]
[1748952557228,0.02,2599.9,2599.8,2.92658024]
[1748952557431,0.02,2599.9,2599.8,6.77302996]
[1748952559361,0.02,2599.9,2599.8,2.92658024]
[1748952560924,0.02,2599.9,2599.8,6.77302996]
[1748952561259,0.02,2599.9,2599.8,2.92658024]
[1748952561455,0.02,2599.9,2599.8,6.77302996]
[1748952561863,0.02,2599.9,2599.8,2.92658024]
[1748952562761,0.02,2599.9,2599.6,3.47658024]
[1748952562947,0.02,2599.9,2599.6,10.92658024]
[1748952563262,0.9043,2599.9,2599.6,10.92658024]
[1748952563462,0.9043,2599.9,2599.6,14.77323306]
[1748952563635,0.9043,2599.9,2599.6,8.0]
[1748952564664,0.9043,2599.9,2599.6,10.92658024]
[1748952564832,4.8063,2599.9,2599.6,10.92658024]
[1748952566363,4.8063,2599.9,2599.6,14.77331299]
[1748952566763,4.8063,2599.9,2599.6,10.92658024]
[1748952566932,4.8063,2599.9,2599.6,14.77331192]
[1748952567268,3.921,2599.9,2599.8,2.92658024]
[1748952567434,3.921,2599.9,2599.8,6.77302996]
[1748952567635,0.02,2599.9,2599.8,6.77302996]
[1748952568367,0.02,2599.9,2599.8,6.68289443]
[1748952569276,0.02,2599.9,2599.8,2.83644471]
[1748952569456,0.02,2599.9,2599.8,6.68289443]
[1748952571746,0.02,2599.9,2599.8,2.83644471]
[1748952572463,0.02,2599.9,2599.8,6.68289443]
[1748952572634,0.02,2599.9,2599.8,2.83644471]
[1748952574692,0.02,2599.9,2599.8,6.68289443]
[1748952575003,0.02,2599.9,2599.8,2.83644471]
[1748952577512,0.02,2599.9,2599.7,0.55]
[1748952577800,3.86636319,2599.9,2599.6,8.0]
[1748952577954,0.4119,2599.9,2599.6,8.0]
[1748952579196,0.4119,2599.9,2599.6,11.84665826]
[1748952579402,0.02,2599.9,2599.6,11.84665826]
[1748952579571,0.02,2599.9,2599.6,8.0]
[1748952580106,0.02,2599.9,2599.6,11.8467446]
[1748952580405,3.897,2599.8,2599.6,8.0]
[1748952581877,3.897,2599.8,2599.6,11.84673677]
[1748952582710,3.897,2599.8,2599.6,8.0]
[1748952583002,0.8997,2599.7,2599.6,8.0]
[1748952584973,0.8997,2599.7,2599.6,11.84674565]
[1748952585375,0.8997,2599.7,2599.6,8.0]
[1748952585595,0.8997,2599.7,2599.4,3.84691882]
[1748952586110,0.8997,2599.7,2599.4,8.0]
[1748952586311,0.8792,2599.6,2598.8,2.92658024]
[1748952586608,3.897,2599.5,2599.2,3.84721653]
[1748952586908,3.897,2599.5,2599.1,8.0]
[1748952587313,3.897,2599.5,2599.2,3.84730164]
[1748952587680,0.8792,2599.6,2599.2,2.92658024]
[1748952587988,0.9277,2599.8,2599.5,3.84689363]
[1748952588205,3.899,2599.7,2599.6,3.8466694]
[1748952589087,3.899,2599.7,2599.6,3.84674565]
[1748952589727,3.898,2599.7,2599.5,11.84682729]
[1748952590587,3.898,2599.7,2599.6,3.84674565]
[1748952590814,4.8277,2599.8,2599.6,3.84674565]
[1748952591014,3.9,2599.8,2599.6,6.77332589]
[1748952592029,3.9,2599.8,2599.5,11.84682877]
[1748952592325,3.9,2599.8,2599.5,8.0]
[1748952592624,0.9086,2599.7,2599.4,11.84701769]
[1748952593728,0.9086,2599.7,2599.4,11.84695802]
[1748952593929,0.9086,2599.7,2599.5,3.84689147]
[1748952595931,0.9086,2599.7,2599.4,10.92658024]
[1748952596139,3.899,2599.6,2599.5,3.84689363]
[1748952600144,3.899,2599.6,2599.5,11.84689363]
[1748952600351,0.9104,2599.9,2599.7,3.8465873]
[1748952600539,0.9104,2599.9,2599.6,3.84665724]
[1748952600715,0.02,2599.9,2599.8,6.77302996]
[1748952601415,0.02,2599.9,2599.7,3.84650734]
[1748952601736,0.02,2599.9,2599.7,3.84658518]
[1748952602167,0.02,2599.9,2599.6,6.7733206]
[1748952602168,3.918,2599.9,2599.6,6.7733206]
[1748952602453,3.918,2599.9,2599.7,3.8465928]
[1748952602665,3.918,2599.9,2599.6,6.77329733]
[1748952602831,3.918,2599.9,2599.7,3.84648641]
[1748952603017,0.02,2599.9,2599.7,3.84648641]
[1748952603217,3.918,2599.9,2599.7,3.84648641]
[1748952603745,3.918,2599.9,2599.8,3.84644972]
[1748952603946,3.918,2599.9,2599.7,3.84651082]
[1748952605752,3.918,2599.9,2599.7,3.846517]
[1748952605930,3.918,2599.9,2599.8,3.84644972]
[1748952606132,3.916,2599.9,2599.8,3.84644972]
[1748952606346,0.02,2599.9,2599.8,6.77302996]
[1748952608339,0.02,2599.9,2599.6,6.77325466]
[1748952608863,0.02,2599.9,2599.7,3.84656993]
[1748952609158,0.02,2599.9,2599.6,6.77327107]
[1748952609861,0.02,2599.9,2599.8,3.84644972]
[1748952610162,0.02,2599.9,2599.7,3.84651055]
[1748952614191,0.8668,2599.8,2599.6,8.0]
[1748952614876,0.8668,2599.8,2599.6,11.84669719]
[1748952615169,0.02,2599.9,2599.7,3.84659768]
[1748952615866,0.02,2599.9,2599.8,7.32302996]
[1748952616229,0.45843104,2601.4,2599.8,11.47658024]
[1748952616426,0.45843104,2601.4,2600.7,6.77169886]
[1748952616427,0.8901,2600.8,2600.7,6.77169886]
[1748952616661,3.92,2600.9,2600.7,2.92658024]
[1748952617064,0.02,2600.9,2600.7,2.92658024]
[1748952617370,3.92,2600.9,2600.7,6.77162215]
[1748952617588,0.02,2600.9,2600.7,6.77162215]
[1748952617759,0.02,2600.9,2600.8,3.84497077]
[1748952618683,0.02,2600.9,2600.8,12.39497077]
[1748952619687,0.02,2600.9,2600.8,12.77832176]
[1748952620278,0.02,2600.9,2600.8,8.38335099]
[1748952620489,0.02,2600.9,2600.8,12.22832176]
[1748952621001,0.02,2600.9,2600.8,8.38335099]
[1748952621378,0.02,2600.9,2600.8,12.77832176]
[1748952624208,4.79084363,2601.9,2600.8,12.77832176]
[1748952624209,0.02,2601.9,2600.8,18.64110699]
[1748952624384,0.02,2601.9,2601.8,2.92658024]
[1748952624906,0.02,2601.9,2601.7,11.84363827]
[1748952625108,0.02,2601.9,2601.8,3.84349296]
[1748952625409,0.02,2601.9,2601.8,7.3200732]
[1748952626823,0.02,2601.9,2601.8,15.3200732]
[1748952629023,0.02,2601.9,2601.8,25.3200732]
[1748952629235,3.939,2602.9,2602.5,8.0]
[1748952629782,0.02,2602.9,2602.5,11.84244729]
[1748952629985,0.02,2602.9,2602.5,8.0]
[1748952630223,0.02,2602.9,2602.5,11.84245224]
[1748952630396,0.02,2602.9,2602.5,10.92658024]
[1748952630596,0.02,2602.9,2602.6,3.84229919]
[1748952630800,0.02,2602.9,2602.5,10.92658024]
[1748952630998,0.02,2602.9,2602.5,14.76897615]
[1748952631215,0.02,2602.9,2602.5,14.76897787]
[1748952631724,0.02,2602.9,2602.5,10.92658024]
[1748952632102,0.02,2602.9,2602.5,8.0]
[1748952632501,0.02,2602.9,2602.5,8.39092635]
[1748952632699,0.02,2602.9,2602.5,12.23337751]
[1748952633016,3.938,2602.9,2602.6,4.39223377]
[1748952633398,3.938,2602.9,2602.5,7.15994158]
[1748952633720,3.937,2602.9,2602.5,3.31750659]
[1748952633930,3.937,2602.9,2602.5,7.15989911]
[1748952634236,3.937,2602.9,2602.6,3.84230212]
[1748952634396,3.937,2602.9,2602.5,7.15988019]
[1748952635323,3.937,2602.9,2602.6,8.0]
[1748952635529,3.937,2602.9,2602.6,11.84230061]
[1748952635935,0.02,2602.9,2602.6,11.84230061]
[1748952636119,0.02,2602.9,2602.7,6.76867856]
[1748952636707,0.02,2602.9,2602.7,2.92658024]
[1748952637236,0.02,2602.9,2602.6,11.84224702]
[1748952637402,0.02,2602.9,2602.7,2.92658024]
[1748952637603,0.02,2602.9,2602.8,11.84201629]
[1748952640212,0.02,2602.9,2602.8,12.39201629]
[1748952645250,0.9205,2603.8,2603.7,3.84068825]
[1748952645449,0.9205,2603.8,2602.8,2.92658024]
[1748952645450,0.9351,2603.6,2602.8,2.92658024]
[1748952645745,4.77606229,2603.6,2603.0,3.84170933]
[1748952646045,0.8939,2603.1,2602.5,4.23337523]
[1748952646251,4.8109,2603.1,2602.8,8.0]
[1748952646564,0.8939,2603.1,2602.7,2.92658024]
[1748952646714,0.8939,2603.1,2602.8,8.0]
[1748952647067,0.8939,2603.1,2602.9,8.0]
[1748952647368,0.8939,2603.1,2603.0,3.84172109]
[1748952648324,3.916,2603.4,2603.1,8.0]
[1748952648569,0.9427,2603.7,2603.4,8.0]
[1748952648847,0.9427,2603.4,2602.8,0.55]
[1748952649048,0.9427,2603.4,2603.0,3.84163269]
[1748952650131,0.9427,2603.4,2603.2,8.0]
[1748952650335,4.8587,2603.4,2603.2,11.8413041]
[1748952650723,0.9427,2603.4,2603.2,11.8413041]
[1748952651061,4.8597,2603.4,2603.2,11.8413041]
[1748952651349,0.9427,2603.4,2603.3,8.0]
[1748952651648,0.02,2603.9,2603.3,8.0]
[1748952651858,8.69100764,2603.8,2603.3,8.0]
[1748952652043,0.9334,2603.6,2603.3,8.0]
[1748952652246,0.9334,2603.6,2603.3,11.84126847]
[1748952652559,0.9334,2603.6,2603.3,11.84118099]
[1748952652852,0.9334,2603.6,2603.4,3.84101375]
[1748952652853,3.917,2603.5,2603.4,3.84101375]
[1748952653759,0.9334,2603.6,2603.4,3.84101375]
[1748952654257,0.9334,2603.6,2603.4,4.39104988]
[1748952654416,0.9334,2603.6,2603.3,3.84119348]
[1748952654756,0.9334,2603.6,2603.3,3.84121855]
[1748952655352,0.9334,2603.6,2603.0,8.55]
[1748952655526,0.9334,2603.6,2603.0,4.3916864]
[1748952655722,1.80240968,2603.6,2603.1,3.84147851]
[1748952655913,3.917,2603.5,2603.2,3.84140528]
[1748952658155,3.917,2603.5,2603.0,4.39165524]
[1748952658516,3.917,2603.5,2603.1,3.8415735]
[1748952658847,3.917,2603.5,2603.2,3.84141136]
[1748952659437,0.8613,2603.8,2603.2,14.40032415]
[1748952659666,4.7763,2603.8,2603.2,14.40032415]
[1748952659964,4.7763,2603.8,2603.4,3.84108206]
[1748952660336,4.7763,2603.8,2603.5,3.84097482]
[1748952660531,4.7763,2603.8,2603.4,3.84101326]
[1748952660763,3.915,2603.7,2603.5,3.84089511]
[1748952661055,3.914,2603.7,2603.5,3.84089511]
[1748952661257,3.914,2603.7,2603.6,3.84083576]
[1748952661423,0.8613,2603.8,2603.7,3.84068825]
[1748952661624,3.916,2603.8,2603.7,3.84068825]
[1748952662157,0.02,2603.9,2603.8,3.84054074]
[1748952662359,0.02,2603.9,2603.5,8.55]
[1748952662564,0.02,2603.9,2603.8,3.84054074]
[1748952664621,0.02,2603.9,2603.8,4.39054074]
[1748952665066,0.02,2603.9,2603.8,12.39054074]
[1748952666076,3.916,2604.7,2604.5,3.83950854]
[1748952666383,0.9019,2604.8,2604.2,12.38995084]
[1748952666527,0.9019,2604.8,2604.6,3.83934273]
[1748952666826,1.02,2604.9,2604.8,11.83906633]
[1748952667024,1.02,2604.9,2604.7,4.2200972]
[1748952667251,1.02,2604.9,2604.8,0.55]
[1748952667453,1.02,2604.9,2604.3,0.55]
[1748952667626,1.02,2604.9,2604.8,4.38906633]
[1748952667839,1.02,2604.9,2604.8,0.55]
[1748952668076,1.02,2604.9,2604.4,13.94393599]
[1748952668275,0.9247,2604.8,2604.2,8.55]
[1748952668477,0.9247,2604.8,2604.2,8.0]
[1748952668688,4.51636287,2604.7,2604.3,3.83970212]
[1748952668856,4.8647,2604.8,2604.5,3.83938149]
[1748952669059,4.8647,2604.8,2604.6,3.83929308]
[1748952669254,1.02,2604.9,2604.4,5.94393599]
[1748952669576,1.02,2604.9,2604.8,4.38906633]
[1748952670166,1.02,2604.9,2604.8,12.38906633]
[1748952671985,1.02,2604.9,2604.8,8.55]
[1748952672191,1.02,2604.9,2604.8,12.38906633]
[1748952672483,1.02,2604.9,2604.8,8.55]
[1748952672867,1.02,2604.9,2604.8,12.38906633]
[1748952673092,1.02,2604.9,2604.8,8.55]
[1748952673443,1.25793958,2604.9,2604.4,3.83955654]
[1748952674002,1.25793958,2604.9,2604.2,8.0]
[1748952674003,0.902,2604.8,2604.2,8.0]
[1748952674284,0.902,2604.8,2604.4,11.83956914]
[1748952674493,0.902,2604.8,2604.4,11.83959131]
[1748952674668,0.902,2604.8,2604.4,3.83963217]
[1748952674868,1.89597754,2604.8,2604.4,11.83963217]
[1748952675898,1.89597754,2604.8,2604.5,8.0]
[1748952676799,1.89597754,2604.8,2604.5,3.8394968]
[1748952677001,1.89597754,2604.8,2604.4,11.83961396]
[1748952677293,1.89597754,2604.8,2604.5,3.83949324]
[1748952678194,4.842,2604.8,2604.5,3.83949324]
[1748952678695,1.25793958,2604.9,2604.5,3.83949324]
[1748952678898,1.02,2604.9,2604.8,3.83906633]
[1748952679058,1.02,2604.9,2604.8,12.38906633]
[1748952680316,1.02,2604.9,2604.8,8.55]
[1748952680519,1.02,2604.9,2604.8,12.38906633]
[1748952680822,1.8968,2604.9,2604.8,8.0]
[1748952680982,5.8388,2604.9,2604.8,8.0]
[1748952681187,6.85193007,2604.9,2604.8,8.0]
[1748952685622,10.69084903,2604.9,2604.8,8.0]
[1748952685791,6.85193007,2604.9,2604.8,8.0]
[1748952685994,10.69084903,2604.9,2604.8,8.0]
[1748952686192,6.85193007,2604.9,2604.8,8.0]
[1748952686550,6.84893007,2604.9,2604.8,8.0]
[1748952686714,5.8358,2604.9,2604.8,8.0]
[1748952687833,4.957,2604.9,2604.8,8.55]
[1748952688006,4.957,2604.9,2604.8,8.0]
[1748952689135,1.02,2604.9,2604.8,8.55]
[1748952689296,1.02,2604.9,2604.8,12.38906633]
[1748952690638,1.02,2604.9,2604.8,8.55]
[1748952691008,5.8852,2604.9,2604.8,8.0]